fUSD/lending_fUSD_20250826
["ID","MTS","AMOUNT","RATE_DAILY","PERIOD"]
[381422995,1756191053376,-1189.0,0.00018121,2]
[381422996,1756191053387,-500.0,0.00018127,2]
[381422997,1756191053399,-440.0,0.0001815,2]
[381422998,1756191053410,-271.0,0.0001815,2]
[381422999,1756191053420,-7483.00812079,0.00018157,2]
[381423000,1756191053431,-10853.77493257,0.00018158,2]
[381423001,1756191053441,-138604.58897478,0.00018158,2]
[381423002,1756191053451,-757.29571426,0.00018159,2]
[381423003,1756191053462,-34459.67162098,0.00018161,2]
[381423004,1756191053472,-500.0,0.00018165,2]
[381423005,1756191053482,-13201.69499115,0.00018165,2]
[381423006,1756191053492,-10853.77493257,0.00018169,2]
[381423007,1756191053502,-13201.69499115,0.00018173,2]
[381423008,1756191053512,-16113.08087823,0.00018174,2]
[381423009,1756191053522,-472.84285712,0.00018176,2]
[381423010,1756191053532,-757.29571426,0.00018182,2]
[381423011,1756191053543,-10853.77493257,0.00018185,2]
[381423012,1756191053554,-138604.58897478,0.00018185,2]
[381423013,1756191053564,-757.29571426,0.00018187,2]
[381423014,1756191053575,-689.95069551,0.00018187,2]
[381423015,1756191053585,-13201.69499115,0.00018192,2]
[381423016,1756191053596,-7483.00812079,0.00018194,2]
[381423017,1756191053608,-472.84285712,0.00018197,2]
[381423018,1756191053620,-472.84285712,0.00018198,2]
[381423019,1756191053632,-757.29571426,0.00018199,2]
[381423020,1756191053642,-7483.00812079,0.000182,2]
[381423021,1756191053652,-37410.81,0.000182,2]
[381423022,1756191053663,-7116.56,0.000182,2]
[381423023,1756191053673,-500.0,0.00018202,2]
[381423024,1756191053684,-34459.67162098,0.00018211,2]
[381423025,1756191053694,-138604.58897478,0.00018213,2]
[381423026,1756191053705,-16113.08087823,0.00018217,2]
[381423027,1756191053715,-34459.67162098,0.00018217,2]
[381423028,1756191053728,-16113.08087823,0.00018218,2]
[381423029,1756191053739,-472.84285712,0.00018225,2]
[381423030,1756191053749,-16113.08087823,0.00018225,2]
[381423031,1756191053760,-34459.67162098,0.00018227,2]
[381423032,1756191053777,-757.29571426,0.00018228,2]
[381423033,1756191053789,-619.82538668,0.00018233,2]
[381423034,1756191053801,-13201.69499115,0.00018239,2]
[381423035,1756191053811,-500.0,0.0001824,2]
[381423036,1756191053821,-16113.08087823,0.0001824,2]
[381423037,1756191053830,-197.37726797,0.00018242,7]
[381423038,1756191053840,-689.95069551,0.00018244,2]
[381423039,1756191053851,-689.95069551,0.00018246,2]
[381423040,1756191053861,-7483.00812079,0.00018248,2]
[381423041,1756191053872,-13201.69499115,0.00018248,2]
[381423042,1756191053882,-34459.67162098,0.00018251,2]
[381423043,1756191053892,-689.95069551,0.00018258,2]
[381423044,1756191053902,-7483.00812079,0.00018258,2]
[381423045,1756191053914,-138604.58897478,0.00018259,2]
[381423046,1756191053924,-7483.00812079,0.00018259,2]
[381423047,1756191053935,-10853.77493257,0.0001826,2]
[381423048,1756191053946,-16113.08087823,0.00018261,2]
[381423049,1756191053956,-10853.77493257,0.00018263,2]
[381423050,1756191053967,-34459.67162098,0.00018267,2]
[381423051,1756191053978,-689.95069551,0.00018267,2]
[381423052,1756191053988,-168.0,0.00018267,2]
[381423053,1756191053999,-13201.69499115,0.00018268,2]
[381423054,1756191054008,-34459.67162098,0.00018268,2]
[381423055,1756191054018,-472.84285712,0.00018271,2]
[381423056,1756191054028,-500.0,0.00018277,2]
[381423057,1756191054039,-10853.77493257,0.00018278,2]
[381423058,1756191054050,-16113.08087823,0.00018279,2]
[381423059,1756191054060,-757.29571426,0.00018281,2]
[381423060,1756191054070,-359.76179104,0.00018283,2]
[381423061,1756191054080,-298.26089446,0.00018283,2]
[381423062,1756191054091,-472.84285712,0.00018286,2]
[381423063,1756191054101,-168.0,0.00018287,2]
[381423064,1756191054114,-10853.77493257,0.00018288,2]
[381423065,1756191054124,-138604.58897478,0.00018289,2]
[381423066,1756191054135,-472.84285712,0.00018292,2]
[381423067,1756191054146,-7483.00812079,0.00018292,2]
[381423068,1756191054157,-13201.69499115,0.00018293,2]
[381423069,1756191054169,-138604.58897478,0.00018293,2]
[381423070,1756191054180,-689.95069551,0.00018294,2]
[381423071,1756191054190,-757.29571426,0.00018297,2]
[381423072,1756191054201,-689.95069551,0.00018297,2]
[381423073,1756191054212,-138604.58897478,0.00018299,2]
[381423074,1756191054222,-500.0,0.00018315,2]
[381423075,1756191054234,-889.63661751,0.00018349,2]
[381423076,1756191054245,-500.0,0.00018352,2]
[381423077,1756191054257,-196.58905453,0.00018354,2]
[381423078,1756191054267,-500.0,0.00018356,2]
[381423079,1756191054278,-500.0,0.00018356,2]
[381423080,1756191054289,-500.0,0.0001839,2]
[381423081,1756191054301,-1208.21471449,0.00018395,2]
[381423082,1756191054310,-8548.92876094,0.000184,2]
[381423083,1756191054320,-3857.65,0.000184,2]
[381423084,1756191054330,-532.0,0.00018424,2]
[381423085,1756191054339,-500.0,0.00018427,2]
[381423086,1756191054351,-168.0,0.00018441,2]
[381423087,1756191054362,-13070.0,0.00018463,7]
[381423088,1756191054372,-168.0,0.00018464,2]
[381423089,1756191054383,-500.0,0.00018465,2]
[381423090,1756191054393,-1000.0,0.0001847,2]
[381423091,1756191054402,-500.0,0.0001847,2]
[381423092,1756191054412,-1000.0,0.00018475,2]
[381423093,1756191054422,-171.03733856,0.00018498,2]
[381423094,1756191054432,-1249.60809719,0.00018498,2]
[381423095,1756191054442,-3755.00759352,0.00018498,2]
[381423096,1756191054451,-169.57391605,0.00018498,2]
[381423097,1756191054842,-3009.7163976,0.000185,2]
[381423098,1756191054853,-2000.0,0.000185,2]
[381423099,1756191054863,-458.7662338,0.000185,7]
[381423100,1756191054872,-212.18043798,0.000185,7]
[381423101,1756191054882,-500.0,0.00018503,2]
[381423102,1756191054891,-300.0,0.00018509,2]
[381423103,1756191054902,-300.0,0.00018509,2]
[381423104,1756191054912,-199630.91,0.0001851,2]
[381423105,1756191054921,-1000.0,0.00018521,2]
[381423106,1756191054930,-447.08811952,0.00018521,2]
[381423107,1756191054940,-1000.0,0.00018521,2]
[381423108,1756191054950,-501.90964086,0.00018521,2]
[381423109,1756191054959,-1000.0,0.00018521,2]
[381423110,1756191054969,-1000.0,0.00018521,2]
[381423111,1756191054978,-640.15524874,0.00018521,2]
[381423112,1756191054988,-1000.0,0.00018521,2]
[381423113,1756191054997,-1000.0,0.00018521,2]
[381423114,1756191055007,-1000.0,0.00018521,2]
[381423115,1756191055017,-427.0969966,0.00018521,2]
[381423116,1756191055027,-220.96035242,0.00018521,2]
[381423117,1756191055037,-1000.0,0.00018521,2]
[381423118,1756191055047,-1000.0,0.00018521,2]
[381423119,1756191055057,-460.2017041,0.00018521,2]
[381423120,1756191055066,-1000.0,0.00018521,2]
[381423121,1756191055076,-1000.0,0.00018521,2]
[381423122,1756191055087,-1000.0,0.00018521,2]
[381423123,1756191055096,-1000.0,0.00018521,2]
[381423124,1756191055107,-1000.0,0.00018521,2]
[381423125,1756191055118,-1000.0,0.00018521,2]
[381423126,1756191055128,-1000.0,0.00018521,2]
[381423127,1756191055137,-400.40264423,0.00018521,2]
[381423128,1756191055146,-1000.0,0.00018521,2]
[381423129,1756191055156,-1000.0,0.00018521,2]
[381423130,1756191055165,-500.54614658,0.00018521,2]
[381423131,1756191055175,-646.33270953,0.00018521,2]
[381423132,1756191055184,-1000.0,0.00018521,2]
[381423133,1756191055194,-1000.0,0.00018521,2]
[381423134,1756191055203,-1000.0,0.00018521,2]
[381423135,1756191055213,-1000.0,0.00018521,2]
[381423136,1756191055222,-1000.0,0.00018521,2]
[381423137,1756191055232,-1000.0,0.00018521,2]
[381423138,1756191055242,-1000.0,0.00018521,2]
[381423139,1756191055251,-500.45989624,0.00018521,2]
[381423140,1756191055260,-3970.0,0.00018522,2]
[381423141,1756191055270,-500.0,0.0001854,2]
[381423142,1756191055279,-2000.0,0.0001855,2]
[381423143,1756191055289,-400.0,0.00018553,2]
[381423144,1756191055298,-2580.0,0.00018555,5]
[381423145,1756191055308,-1000.0,0.0001857,2]
[381423146,1756191055317,-1000.0,0.0001857,2]
[381423147,1756191055326,-500.0,0.0001857,2]
[381423148,1756191055336,-500.0,0.0001857,2]
[381423149,1756191055345,-500.0,0.00018578,2]
[381423150,1756191055355,-500.0,0.00018615,2]
[381423151,1756191055364,-500.0,0.0001863,2]
[381423152,1756191055373,-185.14518406,0.0001863,2]
[381423153,1756191055383,-500.0,0.00018653,2]
[381423154,1756191055392,-2500.0,0.00018662,3]
[381423155,1756191055401,-2500.0,0.00018671,3]
[381423156,1756191055411,-2500.0,0.0001868,3]
[381423157,1756191055420,-2500.0,0.00018689,3]
[381423158,1756191055430,-500.0,0.0001869,2]
[381423159,1756191055441,-2500.0,0.00018698,3]
[381423160,1756191055452,-2500.0,0.00018698,3]
[381423161,1756191055463,-458.7662338,0.000187,3]
[381423162,1756191055473,-212.18043798,0.000187,3]
[381423163,1756191055483,-2500.0,0.00018706,3]
[381423164,1756191055493,-2500.0,0.00018706,3]
[381423165,1756191055503,-2500.0,0.00018715,3]
[381423166,1756191055512,-2500.0,0.00018715,3]
[381423167,1756191055523,-2500.0,0.00018724,3]
[381423168,1756191055533,-2500.0,0.00018724,3]
[381423169,1756191055543,-500.0,0.00018728,2]
[381423170,1756191055554,-2500.0,0.00018733,3]
[381423171,1756191055563,-2500.0,0.00018733,3]
[381423172,1756191055573,-2500.0,0.00018742,3]
[381423173,1756191055584,-2500.0,0.00018742,3]
[381423174,1756191055593,-2500.0,0.0001875,3]
[381423175,1756191055603,-2500.0,0.0001875,3]
[381423176,1756191055613,-2500.0,0.00018759,3]
[381423177,1756191055623,-2500.0,0.00018759,3]
[381423178,1756191055632,-172.83805802,0.0001876,2]
[381423179,1756191055642,-500.0,0.00018765,2]
[381423180,1756191055651,-2500.0,0.00018768,3]
[381423181,1756191055661,-817.00863557,0.00018768,3]
[381423182,1756191057570,-1051.4796279,0.00011923,2]
[381423183,1756191058223,-1325.93961403,0.00011923,2]
[381423184,1756191058236,-2779.62075807,0.00011923,2]
[381423185,1756191058246,-151.0,0.00018,2]
[381423186,1756191058255,-209.70177686,0.00018768,3]
[381423187,1756191058298,-1473.28958757,0.00018768,3]
[381423188,1756191058308,-2500.0,0.00018777,3]
[381423189,1756191058317,-2500.0,0.00018777,3]
[381423190,1756191058327,-151.0,0.00018777,2]
[381423191,1756191058336,-151.0,0.00018777,2]
[381423192,1756191058345,-151.770442,0.00018777,2]
[381423193,1756191058354,-162.683279,0.00018777,2]
[381423194,1756191058364,-162.683279,0.00018777,2]
[381423195,1756191058373,-162.683279,0.00018777,2]
[381423196,1756191058383,-367.090306,0.00018777,2]
[381423197,1756191058392,-162.683279,0.00018777,2]
[381423198,1756191058401,-367.090306,0.00018777,2]
[381423199,1756191058410,-151.0,0.00018777,2]
[381423200,1756191058420,-367.090306,0.00018777,2]
[381423201,1756191058429,-151.0,0.00018777,2]
[381423202,1756191058438,-367.090306,0.00018777,2]
[381423203,1756191058447,-151.0,0.00018777,2]
[381423204,1756191058456,-262.617441,0.00018777,2]
[381423205,1756191058465,-151.0,0.00018777,2]
[381423206,1756191058475,-152.174241,0.00018777,2]
[381423207,1756191058483,-151.0,0.00018777,2]
[381423208,1756191058492,-152.489207,0.00018777,2]
[381423209,1756191058502,-151.0,0.00018777,2]
[381423210,1756191058511,-151.0,0.00018777,2]
[381423211,1756191058520,-151.0,0.00018777,2]
[381423212,1756191058531,-151.0,0.00018777,2]
[381423213,1756191058541,-151.0,0.00018777,2]
[381423214,1756191058552,-151.0,0.00018777,2]
[381423215,1756191058561,-151.0,0.00018777,2]
[381423216,1756191058570,-151.0,0.00018777,2]
[381423217,1756191058579,-151.0,0.00018777,2]
[381423218,1756191058588,-151.0,0.00018777,2]
[381423219,1756191058598,-151.0,0.00018777,2]
[381423220,1756191058607,-151.0,0.00018777,2]
[381423221,1756191058616,-204.241082,0.00018777,2]
[381423222,1756191058626,-151.0,0.00018777,2]
[381423223,1756191058635,-153.865655,0.00018777,2]
[381423224,1756191058644,-151.0,0.00018777,2]
[381423225,1756191058654,-151.0,0.00018777,2]
[381423226,1756191058663,-151.0,0.00018777,2]
[381423227,1756191058672,-151.0,0.00018777,2]
[381423228,1756191058681,-186.058642,0.00018777,2]
[381423229,1756191058690,-151.0,0.00018777,2]
[381423230,1756191058699,-151.0,0.00018777,2]
[381423231,1756191058708,-151.0,0.00018777,2]
[381423232,1756191058717,-151.0,0.00018777,2]
[381423233,1756191058727,-151.0,0.00018777,2]
[381423234,1756191058736,-177.73183,0.00018777,2]
[381423235,1756191058745,-151.0,0.00018777,2]
[381423236,1756191058754,-151.0,0.00018777,2]
[381423237,1756191058764,-216.916803,0.00018777,2]
[381423238,1756191058777,-216.911488,0.00018777,2]
[381423239,1756191058785,-356.769613,0.00018777,2]
[381423240,1756191058794,-216.911488,0.00018777,2]
[381423241,1756191058804,-356.769613,0.00018777,2]
[381423242,1756191058815,-216.911488,0.00018777,2]
[381423243,1756191058824,-356.769613,0.00018777,2]
[381423244,1756191058833,-216.911488,0.00018777,2]
[381423245,1756191058842,-151.0,0.00018777,2]
[381423246,1756191058851,-151.0,0.00018777,2]
[381423247,1756191058861,-151.0,0.00018777,2]
[381423248,1756191058870,-151.0,0.00018777,2]
[381423249,1756191058879,-151.0,0.00018777,2]
[381423250,1756191058889,-151.0,0.00018777,2]
[381423251,1756191058898,-164.449929,0.00018777,2]
[381423252,1756191058908,-2054.293211,0.00018777,2]
[381423253,1756191058917,-2054.293211,0.00018777,2]
[381423254,1756191058926,-151.0,0.00018777,2]
[381423255,1756191058936,-433.107172,0.00018777,2]
[381423256,1756191058945,-2054.293211,0.00018777,2]
[381423257,1756191058954,-151.0,0.00018777,2]
[381423258,1756191058964,-433.107172,0.00018777,2]
[381423259,1756191058974,-2054.293211,0.00018777,2]
[381423260,1756191058984,-433.107172,0.00018777,2]
[381423261,1756191058993,-151.0,0.00018777,2]
[381423262,1756191059002,-280.421757,0.00018777,2]
[381423263,1756191059012,-151.0,0.00018777,2]
[381423264,1756191059021,-151.0,0.00018777,2]
[381423265,1756191059032,-151.0,0.00018777,2]
[381423266,1756191059041,-151.0,0.00018777,2]
[381423267,1756191059050,-151.0,0.00018777,2]
[381423268,1756191059061,-151.931186,0.00018777,2]
[381423269,1756191059070,-417.637221,0.00018777,2]
[381423270,1756191059080,-151.0,0.00018777,2]
[381423271,1756191059089,-433.107172,0.00018777,2]
[381423272,1756191059098,-151.0,0.00018777,2]
[381423273,1756191059107,-417.637221,0.00018777,2]
[381423274,1756191059118,-151.0,0.00018777,2]
[381423275,1756191059128,-151.0,0.00018777,2]
[381423276,1756191059137,-151.0,0.00018777,2]
[381423277,1756191059146,-151.0,0.00018777,2]
[381423278,1756191059155,-151.0,0.00018777,2]
[381423279,1756191059164,-417.637221,0.00018777,2]
[381423280,1756191059174,-151.0,0.00018777,2]
[381423281,1756191059182,-151.0,0.00018777,2]
[381423282,1756191059191,-151.0,0.00018777,2]
[381423283,1756191059200,-151.0,0.00018777,2]
[381423284,1756191059209,-417.637221,0.00018777,2]
[381423285,1756191059218,-272.351694,0.00018777,2]
[381423286,1756191059227,-151.0,0.00018777,2]
[381423287,1756191059237,-151.0,0.00018777,2]
[381423288,1756191059246,-155.873115,0.00018777,2]
[381423289,1756191059256,-151.0,0.00018777,2]
[381423290,1756191059268,-826.849714,0.00018777,2]
[381423291,1756191059277,-200.0,0.00018777,2]
[381423292,1756191059287,-200.0,0.00018777,2]
[381423293,1756191059298,-200.0,0.00018777,2]
[381423294,1756191059309,-200.0,0.00018777,2]
[381423295,1756191059318,-200.0,0.00018777,2]
[381423296,1756191059327,-200.0,0.00018777,2]
[381423297,1756191059336,-826.849714,0.00018777,2]
[381423298,1756191059345,-200.0,0.00018777,2]
[381423299,1756191059355,-200.0,0.00018777,2]
[381423300,1756191059366,-200.0,0.00018777,2]
[381423301,1756191059376,-200.0,0.00018777,2]
[381423302,1756191059387,-826.849714,0.00018777,2]
[381423303,1756191059398,-200.0,0.00018777,2]
[381423304,1756191059409,-200.0,0.00018777,2]
[381423305,1756191059421,-200.0,0.00018777,2]
[381423306,1756191059432,-749.404428,0.00018777,2]
[381423307,1756191059441,-200.0,0.00018777,2]
[381423308,1756191059450,-200.0,0.00018777,2]
[381423309,1756191059459,-200.0,0.00018777,2]
[381423310,1756191059469,-200.0,0.00018777,2]
[381423311,1756191059478,-200.0,0.00018777,2]
[381423312,1756191059488,-200.0,0.00018777,2]
[381423313,1756191059498,-826.849714,0.00018777,2]
[381423314,1756191059509,-200.0,0.00018777,2]
[381423315,1756191059519,-200.0,0.00018777,2]
[381423316,1756191059530,-200.0,0.00018777,2]
[381423317,1756191059539,-242.868925,0.00018777,2]
[381423318,1756191059550,-200.0,0.00018777,2]
[381423319,1756191059560,-749.404428,0.00018777,2]
[381423320,1756191059569,-242.868925,0.00018777,2]
[381423321,1756191059579,-151.0,0.00018777,2]
[381423322,1756191059588,-749.404428,0.00018777,2]
[381423323,1756191059598,-242.868925,0.00018777,2]
[381423324,1756191059607,-749.404428,0.00018777,2]
[381423325,1756191059617,-242.868925,0.00018777,2]
[381423326,1756191059627,-151.0,0.00018777,2]
[381423327,1756191059637,-200.0,0.00018777,2]
[381423328,1756191059647,-200.0,0.00018777,2]
[381423329,1756191059656,-200.0,0.00018777,2]
[381423330,1756191059665,-200.0,0.00018777,2]
[381423331,1756191059675,-200.0,0.00018777,2]
[381423332,1756191059684,-217.50369,0.00018777,2]
[381423333,1756191059694,-202.886805,0.00018777,2]
[381423334,1756191059703,-237.816137,0.00018777,2]
[381423335,1756191059713,-217.50369,0.00018777,2]
[381423336,1756191059723,-151.0,0.00018777,2]
[381423337,1756191059733,-217.50369,0.00018777,2]
[381423338,1756191059743,-190.692182,0.00018777,2]
[381423339,1756191059753,-217.50369,0.00018777,2]
[381423340,1756191059764,-151.0,0.00018777,2]
[381423341,1756191059777,-151.0,0.00018777,2]
[381423342,1756191059788,-153.616725,0.00018777,2]
[381423343,1756191059797,-151.0,0.00018777,2]
[381423344,1756191059806,-1006.303287,0.00018777,2]
[381423345,1756191059815,-1006.303287,0.00018777,2]
[381423346,1756191059825,-1006.303287,0.00018777,2]
[381423347,1756191059836,-151.0,0.00018777,2]
[381423348,1756191059847,-1006.303287,0.00018777,2]
[381423349,1756191059857,-151.0,0.00018777,2]
[381423350,1756191059867,-160.976683,0.00018777,2]
[381423351,1756191059878,-160.976683,0.00018777,2]
[381423352,1756191059892,-160.976683,0.00018777,2]
[381423353,1756191059902,-559.464306,0.00018777,2]
[381423354,1756191059912,-151.0,0.00018777,2]
[381423355,1756191059922,-509.512334,0.00018777,2]
[381423356,1756191059931,-160.976683,0.00018777,2]
[381423357,1756191059941,-151.0,0.00018777,2]
[381423358,1756191059950,-509.512334,0.00018777,2]
[381423359,1756191059960,-151.0,0.00018777,2]
[381423360,1756191059971,-509.512334,0.00018777,2]
[381423361,1756191059980,-151.0,0.00018777,2]
[381423362,1756191059989,-559.464306,0.00018777,2]
[381423363,1756191059998,-151.0,0.00018777,2]
[381423364,1756191060008,-559.464306,0.00018777,2]
[381423365,1756191060017,-509.512334,0.00018777,2]
[381423366,1756191060026,-559.464306,0.00018777,2]
[381423367,1756191060035,-151.0,0.00018777,2]
[381423368,1756191060044,-3436.361304,0.00018777,2]
[381423369,1756191060053,-3436.361304,0.00018777,2]
[381423370,1756191060063,-205.44637,0.00018777,2]
[381423371,1756191060074,-3436.361304,0.00018777,2]
[381423372,1756191060085,-205.44637,0.00018777,2]
[381423373,1756191060095,-151.0,0.00018777,2]
[381423374,1756191060104,-3436.361304,0.00018777,2]
[381423375,1756191060114,-205.44637,0.00018777,2]
[381423376,1756191060130,-186.209494,0.00018777,2]
[381423377,1756191060140,-205.44637,0.00018777,2]
[381423378,1756191060152,-6823.089403,0.00018777,2]
[381423379,1756191060164,-151.0,0.00018777,2]
[381423380,1756191060177,-471.207843,0.00018777,2]
[381423381,1756191060187,-153.220756,0.00018777,2]
[381423382,1756191060196,-6823.089403,0.00018777,2]
[381423383,1756191060206,-471.207843,0.00018777,2]
[381423384,1756191060215,-471.207843,0.00018777,2]
[381423385,1756191060225,-1392.889896,0.00018777,2]
[381423386,1756191060235,-1392.889896,0.00018777,2]
[381423387,1756191060245,-6823.089403,0.00018777,2]
[381423388,1756191060254,-471.207843,0.00018777,2]
[381423389,1756191060264,-1392.889896,0.00018777,2]
[381423390,1756191060273,-1392.889896,0.00018777,2]
[381423391,1756191060282,-151.0,0.00018777,2]
[381423392,1756191060292,-210.861176,0.00018777,2]
[381423393,1756191060301,-6823.089403,0.00018777,2]
[381423394,1756191060316,-151.0,0.00018777,2]
[381423395,1756191060325,-210.861176,0.00018777,2]
[381423396,1756191060334,-313.127285,0.00018777,2]
[381423397,1756191060343,-300.88323,0.00018777,2]
[381423398,1756191060353,-210.861176,0.00018777,2]
[381423399,1756191060362,-313.127285,0.00018777,2]
[381423400,1756191060372,-151.0,0.00018777,2]
[381423401,1756191060381,-313.127285,0.00018777,2]
[381423402,1756191060390,-248.576933,0.00018777,2]
[381423403,1756191060400,-151.0,0.00018777,2]
[381423404,1756191060411,-210.861176,0.00018777,2]
[381423405,1756191060421,-248.576933,0.00018777,2]
[381423406,1756191060432,-323.335728,0.00018777,2]
[381423407,1756191060441,-313.127285,0.00018777,2]
[381423408,1756191060452,-248.576933,0.00018777,2]
[381423409,1756191060463,-323.335728,0.00018777,2]
[381423410,1756191060472,-323.335728,0.00018777,2]
[381423411,1756191060481,-248.576933,0.00018777,2]
[381423412,1756191060491,-323.335728,0.00018777,2]
[381423413,1756191060501,-151.0,0.00018777,2]
[381423414,1756191060510,-151.0,0.00018777,2]
[381423415,1756191060519,-1731.246886,0.00018777,2]
[381423416,1756191060528,-151.0,0.00018777,2]
[381423417,1756191060539,-1731.246886,0.00018777,2]
[381423418,1756191060551,-151.0,0.00018777,2]
[381423419,1756191060562,-1731.246886,0.00018777,2]
[381423420,1756191060571,-1731.246886,0.00018777,2]
[381423421,1756191060580,-151.0,0.00018777,2]
[381423422,1756191060592,-151.0,0.00018777,2]
[381423423,1756191060603,-151.0,0.00018777,2]
[381423424,1756191060614,-151.0,0.00018777,2]
[381423425,1756191060625,-151.0,0.00018777,2]
[381423426,1756191060634,-225.315938,0.00018777,2]
[381423427,1756191060645,-159.226878,0.00018777,2]
[381423428,1756191060656,-151.0,0.00018777,2]
[381423429,1756191060665,-151.0,0.00018777,2]
[381423430,1756191060675,-186.028192,0.00018777,2]
[381423431,1756191060685,-225.315938,0.00018777,2]
[381423432,1756191060694,-151.0,0.00018777,2]
[381423433,1756191060703,-225.315938,0.00018777,2]
[381423434,1756191060712,-151.0,0.00018777,2]
[381423435,1756191060721,-225.315938,0.00018777,2]
[381423436,1756191060730,-151.0,0.00018777,2]
[381423437,1756191060739,-151.0,0.00018777,2]
[381423438,1756191060749,-151.0,0.00018785,2]
[381423439,1756191060758,-151.0,0.00018785,2]
[381423440,1756191060772,-151.0,0.00018785,2]
[381423441,1756191060781,-151.0,0.00018785,2]
[381423442,1756191060790,-151.0,0.00018785,2]
[381423443,1756191060799,-151.0,0.00018785,2]
[381423444,1756191060810,-151.0,0.00018785,2]
[381423445,1756191060819,-151.0,0.00018785,2]
[381423446,1756191060829,-151.0,0.00018785,2]
[381423447,1756191060843,-151.0,0.00018785,2]
[381423448,1756191060856,-151.0,0.00018785,2]
[381423449,1756191060865,-151.0,0.00018785,2]
[381423450,1756191060875,-151.0,0.00018785,2]
[381423451,1756191060885,-151.0,0.00018785,2]
[381423452,1756191060894,-800.577712,0.00018785,2]
[381423453,1756191060904,-800.577712,0.00018785,2]
[381423454,1756191060914,-800.577712,0.00018785,2]
[381423455,1756191060923,-800.577712,0.00018785,2]
[381423456,1756191060934,-151.0,0.00018785,2]
[381423457,1756191060944,-151.0,0.00018785,2]
[381423458,1756191060954,-151.0,0.00018785,2]
[381423459,1756191060964,-151.0,0.00018785,2]
[381423460,1756191060974,-151.0,0.00018785,2]
[381423461,1756191060983,-151.0,0.00018785,2]
[381423462,1756191060993,-151.0,0.00018785,2]
[381423463,1756191061262,-151.0,0.00018785,2]
[381423464,1756191061272,-151.0,0.00018785,2]
[381423465,1756191061282,-151.0,0.00018785,2]
[381423466,1756191061292,-152.475387,0.00018785,2]
[381423467,1756191061302,-161.675227,0.00018785,2]
[381423468,1756191061314,-151.0,0.00018785,2]
[381423469,1756191061324,-151.0,0.00018785,2]
[381423470,1756191061334,-227.635931,0.00018785,2]
[381423471,1756191061344,-227.635931,0.00018785,2]
[381423472,1756191061353,-227.635931,0.00018785,2]
[381423473,1756191061363,-227.635931,0.00018785,2]
[381423474,1756191061374,-2500.0,0.00018786,3]
[381423475,1756191061383,-2500.0,0.00018786,3]
[381423476,1756191061393,-2500.0,0.00018794,3]
[381423477,1756191061403,-2500.0,0.00018794,3]
[381423478,1756191061413,-300.0,0.00018799,2]
[381423479,1756191061422,-20285.41514615,0.000188,2]
[381423480,1756191061432,-151.0,0.000188,2]
[381423481,1756191061443,-151.0,0.000188,2]
[381423482,1756191061453,-151.0,0.000188,2]
[381423483,1756191061463,-223.779137,0.000188,2]
[381423484,1756191061472,-223.779137,0.000188,2]
[381423485,1756191061482,-223.779137,0.000188,2]
[381423486,1756191061491,-223.779137,0.000188,2]
[381423487,1756191061501,-221.018555,0.000188,2]
[381423488,1756191061512,-151.0,0.000188,2]
[381423489,1756191061522,-151.406511,0.000188,2]
[381423490,1756191061533,-151.0,0.000188,2]
[381423491,1756191061542,-151.0,0.000188,2]
[381423492,1756191061552,-234.561032,0.000188,2]
[381423493,1756191061568,-151.0,0.000188,2]
[381423494,1756191061578,-151.0,0.000188,2]